[Event "*** SCC Grand Prix: Titled Tuesday Blitz"]
[Site "Chess.com"]
[Date "2020.07.21"]
[Round "7"]
[White "Mikhail_Golubev"]
[Black "Chesswizard_2007"]
[Result "1-0"]
[WhiteElo "2607"]
[BlackElo "2454"]
[TimeControl "180+1"]
[EndTime "11:19:12 PDT"]
[Termination "Mikhail_Golubev won by checkmate"]

1. e4 {[%clk 0:03:00.9]} 1... e5 {[%clk 0:02:57.2]} 2. Nf3 {[%clk 0:03:00.3]}
2... Nc6 {[%clk 0:02:50.7]} 3. Nc3 {[%clk 0:02:59.9]} 3... Nf6 {[%clk
0:02:50.4]} 4. d4 {[%clk 0:03:00.1]} 4... exd4 {[%clk 0:02:51.3]} 5. Nxd4 {[%clk
0:03:00.2]} 5... Bb4 {[%clk 0:02:49.2]} 6. Nxc6 {[%clk 0:03:00.2]} 6... bxc6
{[%clk 0:02:48.7]} 7. Bd3 {[%clk 0:03:00.4]} 7... d5 {[%clk 0:02:46.8]} 8. Bd2
{[%clk 0:02:59.2]} 8... O-O {[%clk 0:02:44.9]} 9. O-O {[%clk 0:02:58.8]} 9...
Re8 {[%clk 0:02:42.1]} 10. exd5 {[%clk 0:02:56.1]} 10... cxd5 {[%clk 0:02:43]}
11. a3 {[%clk 0:02:38.2]} 11... Bd6 {[%clk 0:02:35.4]} 12. Nb5 {[%clk
0:02:33.5]} 12... Bc5 {[%clk 0:02:31.8]} 13. Bf4 {[%clk 0:02:10.8]} 13... Bb6
{[%clk 0:02:21.9]} 14. Qf3 {[%clk 0:02:03]} 14... a6 {[%clk 0:02:17.2]} 15. Nc3
{[%clk 0:02:01.4]} 15... Be6 {[%clk 0:01:51.2]} 16. h3 {[%clk 0:01:45]} 16... h6
{[%clk 0:01:50.3]} 17. Rad1 {[%clk 0:01:44.3]} 17... Qe7 {[%clk 0:01:41]} 18.
Rfe1 {[%clk 0:01:41.1]} 18... c5 {[%clk 0:01:30.5]} 19. Be5 {[%clk 0:01:29.3]}
19... c4 {[%clk 0:01:20.1]} 20. Bf5 {[%clk 0:01:26.3]} 20... Bxf5 {[%clk
0:01:07.1]} 21. Qxf5 {[%clk 0:01:25.5]} 21... d4 {[%clk 0:01:01]} 22. Bxf6
{[%clk 0:01:12.7]} 22... Qxf6 {[%clk 0:00:47]} 23. Qxf6 {[%clk 0:01:09.4]} 23...
gxf6 {[%clk 0:00:47.9]} 24. Nd5 {[%clk 0:01:08.9]} 24... Rxe1+ {[%clk 0:00:41]}
25. Rxe1 {[%clk 0:01:08.2]} 25... Bd8 {[%clk 0:00:35.5]} 26. Re8+ {[%clk
0:01:05.6]} 26... Kg7 {[%clk 0:00:35.6]} 27. Nb6 {[%clk 0:00:51]} 27... Rb8
{[%clk 0:00:21.7]} 28. Nxc4 {[%clk 0:00:50.1]} 28... f5 {[%clk 0:00:14]} 29. Kf1
{[%clk 0:00:48.6]} 29... f6 {[%clk 0:00:14]} 30. Ke2 {[%clk 0:00:47.7]} 30...
Kf7 {[%clk 0:00:12.6]} 31. Nd6+ {[%clk 0:00:47.5]} 31... Kg7 {[%clk 0:00:12.8]}
32. Nxf5+ {[%clk 0:00:46.6]} 32... Kf7 {[%clk 0:00:13]} 33. Nd6+ {[%clk
0:00:44.3]} 33... Kg6 {[%clk 0:00:10.9]} 34. Kd3 {[%clk 0:00:41.9]} 34... Kg7
{[%clk 0:00:07.3]} 35. f3 {[%clk 0:00:38.3]} 35... h5 {[%clk 0:00:06.8]} 36. Ke4
{[%clk 0:00:34.2]} 36... h4 {[%clk 0:00:05.3]} 37. Kf5 {[%clk 0:00:32.2]} 37...
a5 {[%clk 0:00:03]} 38. Ke6 {[%clk 0:00:29.2]} 38... a4 {[%clk 0:00:02.3]} 39.
Kd7 {[%clk 0:00:23.3]} 39... Rxb2 {[%clk 0:00:01.8]} 40. Rxd8 {[%clk 0:00:18.9]}
40... Rxc2 {[%clk 0:00:02.4]} 41. Nf5+ {[%clk 0:00:16.3]} 41... Kf7 {[%clk
0:00:02.8]} 42. Nxd4 {[%clk 0:00:14.8]} 42... Rxg2 {[%clk 0:00:02.9]} 43. Kc6
{[%clk 0:00:13]} 43... Rg3 {[%clk 0:00:02.6]} 44. Kb5 {[%clk 0:00:09.8]} 44...
Rxh3 {[%clk 0:00:02.8]} 45. Kxa4 {[%clk 0:00:09.9]} 45... Rh1 {[%clk 0:00:03.7]}
46. Kb5 {[%clk 0:00:09.9]} 46... Rb1+ {[%clk 0:00:03.8]} 47. Kc5 {[%clk
0:00:09.4]} 47... h3 {[%clk 0:00:04.7]} 48. Rh8 {[%clk 0:00:09.1]} 48... Rc1+
{[%clk 0:00:04.4]} 49. Kd5 {[%clk 0:00:08.3]} 49... Ra1 {[%clk 0:00:04.4]} 50.
Rxh3 {[%clk 0:00:07.5]} 50... Rxa3 {[%clk 0:00:04.9]} 51. Ke4 {[%clk 0:00:07.9]}
51... Kg6 {[%clk 0:00:04.5]} 52. Kf4 {[%clk 0:00:07.5]} 52... Ra4 {[%clk
0:00:04.2]} 53. Rg3+ {[%clk 0:00:07.8]} 53... Kf7 {[%clk 0:00:04.1]} 54. Ke4
{[%clk 0:00:08.1]} 54... Ra3 {[%clk 0:00:04.8]} 55. Rg1 {[%clk 0:00:08]} 55...
Ra5 {[%clk 0:00:04.8]} 56. f4 {[%clk 0:00:07.8]} 56... Ra4 {[%clk 0:00:04.6]}
57. Rb1 {[%clk 0:00:08]} 57... Ra7 {[%clk 0:00:04.9]} 58. Rb5 {[%clk 0:00:08]}
58... Re7+ {[%clk 0:00:04.7]} 59. Kf5 {[%clk 0:00:07.1]} 59... Rd7 {[%clk
0:00:05.3]} 60. Ne6 {[%clk 0:00:05.4]} 60... Re7 {[%clk 0:00:04]} 61. Rb7 {[%clk
0:00:05.4]} 61... Rxb7 {[%clk 0:00:01.7]} 62. Nd8+ {[%clk 0:00:05.1]} 62... Ke7
{[%clk 0:00:02.6]} 63. Nxb7 {[%clk 0:00:05.4]} 63... Kf7 {[%clk 0:00:03.5]} 64.
Nc5 {[%clk 0:00:05.6]} 64... Ke7 {[%clk 0:00:04.4]} 65. Ne4 {[%clk 0:00:06.2]}
65... Kf7 {[%clk 0:00:05.3]} 66. Nxf6 {[%clk 0:00:06.8]} 66... Ke7 {[%clk
0:00:06.2]} 67. Ng4 {[%clk 0:00:07.2]} 67... Kf7 {[%clk 0:00:07.1]} 68. Kg5
{[%clk 0:00:07.8]} 68... Ke7 {[%clk 0:00:08]} 69. Ne3 {[%clk 0:00:08.2]} 69...
Kf7 {[%clk 0:00:08.9]} 70. Ng4 {[%clk 0:00:08.7]} 70... Ke7 {[%clk 0:00:09.8]}
71. f5 {[%clk 0:00:09.3]} 71... Kf7 {[%clk 0:00:10.7]} 72. Ne3 {[%clk
0:00:09.7]} 72... Ke7 {[%clk 0:00:11.6]} 73. Ng4 {[%clk 0:00:10.1]} 73... Kf7
{[%clk 0:00:12.5]} 74. f6 {[%clk 0:00:10.6]} 74... Kf8 {[%clk 0:00:11.6]} 75.
Ne5 {[%clk 0:00:11]} 75... Kg8 {[%clk 0:00:12.5]} 76. Kg6 {[%clk 0:00:11.3]}
76... Kf8 {[%clk 0:00:13.4]} 77. Nd7+ {[%clk 0:00:11.5]} 77... Kg8 {[%clk
0:00:13.3]} 78. f7+ {[%clk 0:00:11.7]} 78... Kh8 {[%clk 0:00:08.1]} 79. f8=R#
{[%clk 0:00:10.5]} 1-0

[Event "*** SCC Grand Prix: Titled Tuesday Blitz"]
[Site "Chess.com"]
[Date "2020.07.21"]
[Round "7"]
[White "tk22h"]
[Black "eightbyeightchess"]
[Result "1-0"]
[WhiteElo "2313"]
[BlackElo "2419"]
[TimeControl "180+1"]
[EndTime "11:19:15 PDT"]
[Termination "tk22h won on time"]

1. c4 {[%clk 0:03:00.9]} 1... e6 {[%clk 0:02:51]} 2. Nf3 {[%clk 0:02:59.8]} 2...
d5 {[%clk 0:02:46.2]} 3. d4 {[%clk 0:02:59.6]} 3... Nf6 {[%clk 0:02:44.7]} 4.
Nc3 {[%clk 0:02:59]} 4... c6 {[%clk 0:02:44]} 5. Bg5 {[%clk 0:02:57.7]} 5... Be7
{[%clk 0:02:43.8]} 6. e3 {[%clk 0:02:57.4]} 6... Ne4 {[%clk 0:02:43.9]} 7. Bxe7
{[%clk 0:02:56.5]} 7... Qxe7 {[%clk 0:02:43.3]} 8. Rc1 {[%clk 0:02:55.9]} 8...
O-O {[%clk 0:02:41.8]} 9. Bd3 {[%clk 0:02:55.5]} 9... f5 {[%clk 0:02:41.5]} 10.
O-O {[%clk 0:02:54.7]} 10... Nd7 {[%clk 0:02:41.8]} 11. Qc2 {[%clk 0:02:51.8]}
11... Ndf6 {[%clk 0:02:41.8]} 12. Nd2 {[%clk 0:02:51.2]} 12... Bd7 {[%clk
0:02:41.1]} 13. f3 {[%clk 0:02:50.4]} 13... Nxd2 {[%clk 0:02:39.3]} 14. Qxd2
{[%clk 0:02:48]} 14... Rad8 {[%clk 0:02:38.1]} 15. Rce1 {[%clk 0:02:44.8]} 15...
Be8 {[%clk 0:02:36.3]} 16. cxd5 {[%clk 0:02:35.7]} 16... Nxd5 {[%clk 0:02:27.1]}
17. Nxd5 {[%clk 0:02:35]} 17... exd5 {[%clk 0:02:22.2]} 18. Qc2 {[%clk
0:02:25.8]} 18... Bg6 {[%clk 0:02:21.2]} 19. Qb3 {[%clk 0:02:19]} 19... Kh8
{[%clk 0:02:19.5]} 20. Qc3 {[%clk 0:02:17]} 20... h6 {[%clk 0:02:16.4]} 21. Re2
{[%clk 0:02:16.8]} 21... Bh7 {[%clk 0:02:16.7]} 22. Rfe1 {[%clk 0:02:16.8]}
22... Qd6 {[%clk 0:02:12]} 23. b4 {[%clk 0:02:09.7]} 23... a6 {[%clk 0:02:10.6]}
24. a4 {[%clk 0:02:08.4]} 24... Rde8 {[%clk 0:02:11.2]} 25. Qc5 {[%clk
0:02:07.8]} 25... Qb8 {[%clk 0:02:03.4]} 26. b5 {[%clk 0:02:03.2]} 26... axb5
{[%clk 0:02:03.2]} 27. axb5 {[%clk 0:02:02.8]} 27... f4 {[%clk 0:01:50.7]} 28.
Bxh7 {[%clk 0:02:01.5]} 28... Kxh7 {[%clk 0:01:51.6]} 29. bxc6 {[%clk
0:01:58.5]} 29... bxc6 {[%clk 0:01:50.6]} 30. Qxc6 {[%clk 0:01:56.4]} 30... Rxe3
{[%clk 0:01:41.7]} 31. Rxe3 {[%clk 0:01:55.9]} 31... fxe3 {[%clk 0:01:42.6]} 32.
Qc2+ {[%clk 0:01:54.6]} 32... Kh8 {[%clk 0:01:39.9]} 33. Rxe3 {[%clk 0:01:54.2]}
33... Qf4 {[%clk 0:01:39.1]} 34. Qd2 {[%clk 0:01:50.6]} 34... Qg5 {[%clk
0:01:33.1]} 35. Rd3 {[%clk 0:01:45.2]} 35... Qf5 {[%clk 0:01:27.5]} 36. Qe3
{[%clk 0:01:41.1]} 36... Rb8 {[%clk 0:01:24.2]} 37. Rd1 {[%clk 0:01:25.4]} 37...
Rb2 {[%clk 0:01:10.9]} 38. Rd2 {[%clk 0:01:01]} 38... Rb6 {[%clk 0:00:50.4]} 39.
Qd3 {[%clk 0:00:47.2]} 39... Qf4 {[%clk 0:00:40.2]} 40. g3 {[%clk 0:00:44.3]}
40... Qg5 {[%clk 0:00:34.3]} 41. Kg2 {[%clk 0:00:43.1]} 41... Rb8 {[%clk
0:00:32.2]} 42. Re2 {[%clk 0:00:42.7]} 42... Qf6 {[%clk 0:00:27]} 43. Qe3 {[%clk
0:00:40.4]} 43... Rf8 {[%clk 0:00:26]} 44. h4 {[%clk 0:00:32.9]} 44... Rb8
{[%clk 0:00:23.6]} 45. Qe5 {[%clk 0:00:30.9]} 45... Rf8 {[%clk 0:00:13.4]} 46.
Qxf6 {[%clk 0:00:29.8]} 46... Rxf6 {[%clk 0:00:14.3]} 47. Re5 {[%clk 0:00:29.7]}
47... Rd6 {[%clk 0:00:14.5]} 48. h5 {[%clk 0:00:28]} 48... Kg8 {[%clk 0:00:15]}
49. Kf2 {[%clk 0:00:26.5]} 49... Kf7 {[%clk 0:00:15.6]} 50. Ke3 {[%clk
0:00:26.2]} 50... Kf6 {[%clk 0:00:13.8]} 51. g4 {[%clk 0:00:26.4]} 51... Rd8
{[%clk 0:00:11.4]} 52. Kf4 {[%clk 0:00:25.6]} 52... Rd6 {[%clk 0:00:11.1]} 53.
Kg3 {[%clk 0:00:25.5]} 53... Rd8 {[%clk 0:00:11.2]} 54. f4 {[%clk 0:00:25.7]}
54... Rd6 {[%clk 0:00:11.7]} 55. g5+ {[%clk 0:00:25.3]} 55... hxg5 {[%clk
0:00:12.6]} 56. fxg5+ {[%clk 0:00:25.4]} 56... Kf7 {[%clk 0:00:13.2]} 57. Kg4
{[%clk 0:00:25.6]} 57... Rd8 {[%clk 0:00:13.1]} 58. Kf5 {[%clk 0:00:24.3]} 58...
Rd7 {[%clk 0:00:12]} 59. g6+ {[%clk 0:00:24.2]} 59... Kf8 {[%clk 0:00:12.2]} 60.
Ke6 {[%clk 0:00:23.8]} 60... Ra7 {[%clk 0:00:12.3]} 61. Rxd5 {[%clk 0:00:23.2]}
61... Ra6+ {[%clk 0:00:12.4]} 62. Rd6 {[%clk 0:00:22.7]} 62... Ra8 {[%clk
0:00:13.1]} 63. d5 {[%clk 0:00:20.1]} 63... Re8+ {[%clk 0:00:13]} 64. Kf5 {[%clk
0:00:19.6]} 64... Re1 {[%clk 0:00:11.6]} 65. Rd8+ {[%clk 0:00:17.5]} 65... Ke7
{[%clk 0:00:11.9]} 66. Rg8 {[%clk 0:00:16.4]} 66... Rf1+ {[%clk 0:00:12.4]} 67.
Ke5 {[%clk 0:00:16.1]} 67... Re1+ {[%clk 0:00:12.6]} 68. Kd4 {[%clk 0:00:15.8]}
68... Kf6 {[%clk 0:00:10.7]} 69. Rf8+ {[%clk 0:00:10.4]} 69... Kg5 {[%clk
0:00:10.9]} 70. Rh8 {[%clk 0:00:06.6]} 70... Kf6 {[%clk 0:00:09.4]} 71. Kc5
{[%clk 0:00:06.6]} 71... Rc1+ {[%clk 0:00:08.1]} 72. Kd6 {[%clk 0:00:06.6]}
72... Rd1 {[%clk 0:00:08.1]} 73. Rf8+ {[%clk 0:00:06.5]} 73... Kg5 {[%clk
0:00:08.2]} 74. Rf7 {[%clk 0:00:06.8]} 74... Kh6 {[%clk 0:00:05.3]} 75. Ke6
{[%clk 0:00:05.7]} 75... Re1+ {[%clk 0:00:05.3]} 76. Kd7 {[%clk 0:00:05.3]}
76... Rd1 {[%clk 0:00:03.3]} 77. d6 {[%clk 0:00:03.4]} 1-0

[Event "*** SCC Grand Prix: Titled Tuesday Blitz"]
[Site "Chess.com"]
[Date "2020.07.21"]
[Round "7"]
[White "Fortitudine"]
[Black "czasnaszachy"]
[Result "1/2-1/2"]
[WhiteElo "2276"]
[BlackElo "2241"]
[TimeControl "180+1"]
[EndTime "11:19:16 PDT"]
[Termination "Game drawn by repetition"]

1. d4 {[%clk 0:03:00.9]} 1... d5 {[%clk 0:02:56.4]} 2. Nc3 {[%clk 0:03:00.3]}
2... Nf6 {[%clk 0:02:54.2]} 3. Bg5 {[%clk 0:02:59.5]} 3... Bf5 {[%clk
0:02:33.8]} 4. e3 {[%clk 0:02:57.7]} 4... e6 {[%clk 0:02:31]} 5. Bd3 {[%clk
0:02:57.4]} 5... Bxd3 {[%clk 0:02:29.7]} 6. Qxd3 {[%clk 0:02:58.3]} 6... Bd6
{[%clk 0:02:25.6]} 7. e4 {[%clk 0:02:53.9]} 7... dxe4 {[%clk 0:02:21.9]} 8. Nxe4
{[%clk 0:02:54.8]} 8... Be7 {[%clk 0:02:22]} 9. Bxf6 {[%clk 0:02:52.6]} 9...
Bxf6 {[%clk 0:02:21.9]} 10. Nf3 {[%clk 0:02:53]} 10... O-O {[%clk 0:02:19.2]}
11. O-O {[%clk 0:02:50.4]} 11... Nd7 {[%clk 0:02:00.7]} 12. Rad1 {[%clk
0:02:45.5]} 12... Qe7 {[%clk 0:01:59]} 13. Rfe1 {[%clk 0:02:44.2]} 13... Rfd8
{[%clk 0:01:50.2]} 14. Qb3 {[%clk 0:02:20.3]} 14... Nb6 {[%clk 0:01:38.2]} 15.
c3 {[%clk 0:02:00.4]} 15... a5 {[%clk 0:01:25.9]} 16. Nc5 {[%clk 0:01:48.2]}
16... a4 {[%clk 0:01:19.8]} 17. Qb5 {[%clk 0:01:46.4]} 17... Ra7 {[%clk
0:00:46]} 18. Ne5 {[%clk 0:01:24.2]} 18... Rda8 {[%clk 0:00:38.3]} 19. Ned7
{[%clk 0:01:10.6]} 19... Ra5 {[%clk 0:00:20.6]} 20. Nxf6+ {[%clk 0:01:09.8]}
20... Qxf6 {[%clk 0:00:20.8]} 21. Qe2 {[%clk 0:01:06.9]} 21... a3 {[%clk
0:00:18.2]} 22. b3 {[%clk 0:01:06.7]} 22... R5a7 {[%clk 0:00:15.6]} 23. c4
{[%clk 0:01:03.3]} 23... Rd8 {[%clk 0:00:15.1]} 24. Qe5 {[%clk 0:01:01.1]} 24...
Qxe5 {[%clk 0:00:14.8]} 25. dxe5 {[%clk 0:01:02]} 25... Raa8 {[%clk 0:00:09.3]}
26. Nxb7 {[%clk 0:01:00.5]} 26... Rxd1 {[%clk 0:00:07.2]} 27. Rxd1 {[%clk
0:01:01.4]} 27... g6 {[%clk 0:00:05.8]} 28. f4 {[%clk 0:01:00.2]} 28... Rb8
{[%clk 0:00:05.4]} 29. Rd8+ {[%clk 0:00:59.7]} 29... Rxd8 {[%clk 0:00:05.2]} 30.
Nxd8 {[%clk 0:01:00.6]} 30... Nd7 {[%clk 0:00:05.5]} 31. Nc6 {[%clk 0:00:55.4]}
31... Nc5 {[%clk 0:00:05.2]} 32. Na5 {[%clk 0:00:55]} 32... Nd3 {[%clk
0:00:03.4]} 33. g3 {[%clk 0:00:52.5]} 33... Nc1 {[%clk 0:00:02.9]} 34. b4 {[%clk
0:00:46.7]} 34... Nxa2 {[%clk 0:00:02.8]} 35. b5 {[%clk 0:00:46.8]} 35... Nb4
{[%clk 0:00:02.5]} 36. Nb3 {[%clk 0:00:46.3]} 36... Nc2 {[%clk 0:00:02]} 37. c5
{[%clk 0:00:42.6]} 37... a2 {[%clk 0:00:01.4]} 38. b6 {[%clk 0:00:42.7]} 38...
cxb6 {[%clk 0:00:01.2]} 39. cxb6 {[%clk 0:00:43]} 39... Nb4 {[%clk 0:00:01.5]}
40. b7 {[%clk 0:00:42.4]} 40... Nc6 {[%clk 0:00:01.5]} 41. Kf2 {[%clk
0:00:42.9]} 41... Kf8 {[%clk 0:00:01.9]} 42. Ke2 {[%clk 0:00:43.3]} 42... Ke8
{[%clk 0:00:02.4]} 43. Kd3 {[%clk 0:00:43.7]} 43... Kd8 {[%clk 0:00:02.8]} 44.
Kc3 {[%clk 0:00:44]} 44... Kc7 {[%clk 0:00:03.2]} 45. b8=Q+ {[%clk 0:00:44.9]}
45... Kxb8 {[%clk 0:00:03.4]} 46. Kb2 {[%clk 0:00:45.1]} 46... Kc7 {[%clk
0:00:04]} 47. Kxa2 {[%clk 0:00:44.5]} 47... Ne7 {[%clk 0:00:04.9]} 48. Kb2
{[%clk 0:00:44]} 48... Nf5 {[%clk 0:00:05.1]} 49. Kc3 {[%clk 0:00:44.2]} 49...
Kd7 {[%clk 0:00:05.4]} 50. Kd3 {[%clk 0:00:43.2]} 50... h5 {[%clk 0:00:05.5]}
51. Ke4 {[%clk 0:00:42.8]} 51... Ke7 {[%clk 0:00:05.7]} 52. Nd4 {[%clk
0:00:41.7]} 52... Kf8 {[%clk 0:00:05.7]} 53. Nxf5 {[%clk 0:00:41.5]} 53... gxf5+
{[%clk 0:00:06]} 54. Kd4 {[%clk 0:00:40.5]} 54... Ke7 {[%clk 0:00:05]} 55. Kc5
{[%clk 0:00:40.5]} 55... Kd7 {[%clk 0:00:03.2]} 56. Kb6 {[%clk 0:00:40.7]} 56...
Kd8 {[%clk 0:00:01.5]} 57. Kc6 {[%clk 0:00:36.4]} 57... Ke7 {[%clk 0:00:01.8]}
58. Kc7 {[%clk 0:00:36.7]} 58... Ke8 {[%clk 0:00:02]} 59. Kd6 {[%clk 0:00:33.7]}
59... Kd8 {[%clk 0:00:02.3]} 60. Kc6 {[%clk 0:00:26]} 60... Ke7 {[%clk
0:00:02.4]} 61. Kc7 {[%clk 0:00:21.4]} 61... Ke8 {[%clk 0:00:02.7]} 62. h3
{[%clk 0:00:20.2]} 62... Ke7 {[%clk 0:00:03]} 63. Kc6 {[%clk 0:00:20.5]} 63...
Ke8 {[%clk 0:00:03.2]} 64. Kc5 {[%clk 0:00:20.5]} 64... Ke7 {[%clk 0:00:03.6]}
65. Kd4 {[%clk 0:00:20.5]} 65... Kf8 {[%clk 0:00:03.8]} 66. Ke3 {[%clk
0:00:20.4]} 66... Kg7 {[%clk 0:00:04.1]} 67. Kd4 {[%clk 0:00:20.9]} 67... Kf8
{[%clk 0:00:04.2]} 68. Ke3 {[%clk 0:00:20.3]} 68... Kg7 {[%clk 0:00:04.5]} 69.
Kf3 {[%clk 0:00:20.7]} 69... Kg6 {[%clk 0:00:04.7]} 70. Ke3 {[%clk 0:00:20.7]}
70... Kg7 {[%clk 0:00:04.9]} 1/2-1/2

[Event "*** SCC Grand Prix: Titled Tuesday Blitz"]
[Site "Chess.com"]
[Date "2020.07.21"]
[Round "7"]
[White "Denmark2015"]
[Black "PotapovaM"]
[Result "0-1"]
[WhiteElo "2613"]
[BlackElo "2485"]
[TimeControl "180+1"]
[EndTime "11:19:21 PDT"]
[Termination "PotapovaM won by resignation"]

1. d4 {[%clk 0:03:00.9]} 1... Nf6 {[%clk 0:02:59.9]} 2. c4 {[%clk 0:03:00.4]}
2... e6 {[%clk 0:03:00.5]} 3. Nc3 {[%clk 0:02:59.7]} 3... Bb4 {[%clk 0:03:00.6]}
4. a3 {[%clk 0:02:59.3]} 4... Bxc3+ {[%clk 0:02:59.7]} 5. bxc3 {[%clk
0:03:00.2]} 5... b6 {[%clk 0:03:00.4]} 6. f3 {[%clk 0:02:59.9]} 6... Bb7 {[%clk
0:02:56.1]} 7. e4 {[%clk 0:02:59.8]} 7... Nxe4 {[%clk 0:02:41.6]} 8. fxe4 {[%clk
0:02:57.8]} 8... Qh4+ {[%clk 0:02:41.4]} 9. Kd2 {[%clk 0:02:47.8]} 9... Bxe4
{[%clk 0:02:36.4]} 10. Nf3 {[%clk 0:02:41.8]} 10... Qh6+ {[%clk 0:02:25.6]} 11.
Ke1 {[%clk 0:02:35.3]} 11... Qg6 {[%clk 0:02:22.5]} 12. Ne5 {[%clk 0:02:16.2]}
12... Qf6 {[%clk 0:02:12]} 13. Qg4 {[%clk 0:02:05]} 13... Bf5 {[%clk 0:01:45.6]}
14. Qf3 {[%clk 0:01:57.1]} 14... c6 {[%clk 0:01:33.3]} 15. Bd3 {[%clk
0:01:43.3]} 15... O-O {[%clk 0:01:26.8]} 16. Bxf5 {[%clk 0:01:30.7]} 16... exf5
{[%clk 0:01:25]} 17. h4 {[%clk 0:01:16.8]} 17... Re8 {[%clk 0:01:20.5]} 18. Kf2
{[%clk 0:01:12.1]} 18... d6 {[%clk 0:00:44]} 19. Nd3 {[%clk 0:01:02.7]} 19...
Nd7 {[%clk 0:00:36.1]} 20. Bf4 {[%clk 0:00:49.3]} 20... Qe6 {[%clk 0:00:32.2]}
21. Nb2 {[%clk 0:00:38.8]} 21... Nf6 {[%clk 0:00:30.1]} 22. Rhe1 {[%clk
0:00:31.5]} 22... Ne4+ {[%clk 0:00:27.8]} 23. Kg1 {[%clk 0:00:31.8]} 23... Qf6
{[%clk 0:00:27.5]} 24. g3 {[%clk 0:00:27.5]} 24... h6 {[%clk 0:00:27.3]} 25. h5
{[%clk 0:00:26.1]} 25... Re7 {[%clk 0:00:26]} 26. Re3 {[%clk 0:00:20]} 26...
Rae8 {[%clk 0:00:26]} 27. Rae1 {[%clk 0:00:20.1]} 27... Nd2 {[%clk 0:00:22.2]}
28. Qg2 {[%clk 0:00:18.9]} 28... Ne4 {[%clk 0:00:21.7]} 29. Nd3 {[%clk
0:00:17.8]} 29... Nxc3 {[%clk 0:00:19.7]} 30. Rxe7 {[%clk 0:00:16.2]} 30... Rxe7
{[%clk 0:00:20.6]} 31. Rxe7 {[%clk 0:00:16.2]} 31... Qxe7 {[%clk 0:00:21.5]} 32.
Qxc6 {[%clk 0:00:14.2]} 32... Kh7 {[%clk 0:00:14.1]} 33. Qf3 {[%clk 0:00:13]}
33... Ne2+ {[%clk 0:00:12.5]} 34. Kf2 {[%clk 0:00:10.9]} 34... Nxd4 {[%clk
0:00:12.2]} 35. Qe3 {[%clk 0:00:11.2]} 35... Qf6 {[%clk 0:00:12.7]} 36. Kg2
{[%clk 0:00:10.1]} 36... Ne6 {[%clk 0:00:12.7]} 37. Bxd6 {[%clk 0:00:08.5]}
37... Qc3 {[%clk 0:00:13.3]} 38. Be5 {[%clk 0:00:07.6]} 38... Qc2+ {[%clk
0:00:13.3]} 39. Nf2 {[%clk 0:00:07.3]} 39... Qxc4 {[%clk 0:00:11.6]} 40. Bb2
{[%clk 0:00:05.9]} 40... Qc2 {[%clk 0:00:10.3]} 41. Qc3 {[%clk 0:00:05.9]} 41...
Qe2 {[%clk 0:00:09.2]} 42. Bc1 {[%clk 0:00:05]} 42... f4 {[%clk 0:00:08.2]} 43.
Qd3+ {[%clk 0:00:04.8]} 43... Qxd3 {[%clk 0:00:07.4]} 44. Nxd3 {[%clk
0:00:05.7]} 44... fxg3 {[%clk 0:00:08.1]} 45. Kxg3 {[%clk 0:00:06.6]} 45... Nd4
{[%clk 0:00:08.3]} 46. Be3 {[%clk 0:00:06.4]} 46... Nc2 {[%clk 0:00:08.1]} 47.
Bc1 {[%clk 0:00:07]} 47... g6 {[%clk 0:00:08]} 48. hxg6+ {[%clk 0:00:06.3]}
48... fxg6 {[%clk 0:00:08.9]} 49. Nb4 {[%clk 0:00:06.9]} 49... Nd4 {[%clk
0:00:08.2]} 50. Nd5 {[%clk 0:00:06.5]} 50... Ne2+ {[%clk 0:00:07.9]} 51. Kf3
{[%clk 0:00:05.9]} 51... Nxc1 {[%clk 0:00:08.8]} 52. Nc7 {[%clk 0:00:05.4]}
52... Nb3 {[%clk 0:00:08.7]} 53. Nb5 {[%clk 0:00:04.7]} 53... a6 {[%clk
0:00:08.7]} 54. Nc7 {[%clk 0:00:04.6]} 54... Nc5 {[%clk 0:00:08.4]} 55. Nd5
{[%clk 0:00:03.9]} 55... b5 {[%clk 0:00:08.3]} 56. Nc3 {[%clk 0:00:04.2]} 56...
g5 {[%clk 0:00:07.5]} 57. Kg4 {[%clk 0:00:04.6]} 57... Kg6 {[%clk 0:00:07.6]}
58. Kf3 {[%clk 0:00:04.7]} 58... h5 {[%clk 0:00:08]} 59. Nd5 {[%clk 0:00:05.2]}
59... g4+ {[%clk 0:00:07.8]} 60. Kf4 {[%clk 0:00:05.5]} 60... Nd3+ {[%clk
0:00:07.9]} 61. Ke3 {[%clk 0:00:05.7]} 61... Ne5 {[%clk 0:00:07.5]} 62. Nc7
{[%clk 0:00:05.7]} 62... Nc4+ {[%clk 0:00:07.5]} 63. Kd4 {[%clk 0:00:05.6]}
63... Nxa3 {[%clk 0:00:07.9]} 64. Nxa6 {[%clk 0:00:06.5]} 64... h4 {[%clk
0:00:07.6]} 65. Ke3 {[%clk 0:00:06.9]} 65... Kg5 {[%clk 0:00:08.1]} 66. Kf2
{[%clk 0:00:07.2]} 66... g3+ {[%clk 0:00:08.2]} 67. Kf3 {[%clk 0:00:07.1]} 67...
Nc2 {[%clk 0:00:07.2]} 68. Nc5 {[%clk 0:00:08]} 68... Nd4+ {[%clk 0:00:07.4]}
69. Kg2 {[%clk 0:00:08.7]} 69... Kg4 {[%clk 0:00:06.6]} 70. Nd3 {[%clk
0:00:07.7]} 70... h3+ {[%clk 0:00:07]} 71. Kg1 {[%clk 0:00:08.3]} 71... Nf3+
{[%clk 0:00:06.8]} 72. Kf1 {[%clk 0:00:07.3]} 72... g2+ {[%clk 0:00:07.4]} 73.
Ke2 {[%clk 0:00:07.1]} 73... g1=Q {[%clk 0:00:07.6]} 74. Nf2+ {[%clk 0:00:08]}
74... Kh5 {[%clk 0:00:06.6]} 75. Kxf3 {[%clk 0:00:07.4]} 75... Qg2+ {[%clk
0:00:06.9]} 76. Ke3 {[%clk 0:00:07.3]} 76... Qxf2+ {[%clk 0:00:07.3]} 77. Kxf2
{[%clk 0:00:07.3]} 77... b4 {[%clk 0:00:08]} 78. Kg3 {[%clk 0:00:07.8]} 78... b3
{[%clk 0:00:08.6]} 79. Kxh3 {[%clk 0:00:08.7]} 79... b2 {[%clk 0:00:09]} 80. Kg3
{[%clk 0:00:09.6]} 80... b1=Q {[%clk 0:00:09.2]} 0-1